Workbook

Sheet Budżet rodzinny
B1: KOWALSCY — BUDŻET RODZINNY
B2: ROK: | C2: 2013
B4: DOSTĘPNA GOTÓWKA | C4: STY | D4: LUT | E4: MAR | F4: KWI | G4: MAJ | H4: CZE | I4: LIP | J4: SIE | K4: WRZ | L4: PAŹ | M4: LIS | N4: GRU | O4: SUMA OPR | P4: TREND
B5: Gotówka miesięczna | C5: =tblPrzychód[[#Totals],[STY]]-tblWydatki[[#Totals],[STY]] -> 1,220.00 zł | D5: =tblPrzychód[[#Totals],[LUT]]-tblWydatki[[#Totals],[LUT]] -> 1,587.00 zł | E5: =tblPrzychód[[#Totals],[MAR]]-tblWydatki[[#Totals],[MAR]] -> 1,174.00 zł | F5: =tblPrzychód[[#Totals],[KWI]]-tblWydatki[[#Totals],[KWI]] -> 1,445.00 zł | G5: =tblPrzychód[[#Totals],[MAJ]]-tblWydatki[[#Totals],[MAJ]] -> 1,391.00 zł | H5: =tblPrzychód[[#Totals],[CZE]]-tblWydatki[[#Totals],[CZE]] -> 1,434.00 zł | I5: =tblPrzychód[[#Totals],[LIP]]-tblWydatki[[#Totals],[LIP]] -> 1,085.00 zł | J5: =tblPrzychód[[#Totals],[SIE]]-tblWydatki[[#Totals],[SIE]] -> 1,181.00 zł | K5: =tblPrzychód[[#Totals],[WRZ]]-tblWydatki[[#Totals],[WRZ]] -> 1,445.00 zł | L5: =tblPrzychód[[#Totals],[PAŹ]]-tblWydatki[[#Totals],[PAŹ]] -> 1,466.00 zł | M5: =tblPrzychód[[#Totals],[LIS]]-tblWydatki[[#Totals],[LIS]] -> 0.00 zł | N5: =tblPrzychód[[#Totals],[GRU]]-tblWydatki[[#Totals],[GRU]] -> 0.00 zł | O5: =tblPrzychód[[#Totals],[SUMA OPR]]-tblWydatki[[#Totals],[SUMA OPR]] -> 13,428.00 zł
B7: TYP PRZYCHODU | C7: STY | D7: LUT | E7: MAR | F7: KWI | G7: MAJ | H7: CZE | I7: LIP | J7: SIE | K7: WRZ | L7: PAŹ | M7: LIS | N7: GRU | O7: SUMA OPR | P7: TREND
B8: Przychód 1 | C8: 4,000.00 zł | D8: 4,410.00 zł | E8: 4,019.00 zł | F8: 4,263.00 zł | G8: 4,123.00 zł | H8: 4,308.00 zł | I8: 4,162.00 zł | J8: 4,165.00 zł | K8: 4,248.00 zł | L8: 4,324.00 zł | O8: =SUM(tblPrzychód[[#This Row],[STY]:[GRU]]) -> 42,022.00 zł
B9: Przychód 2 | C9: 275.00 zł | D9: 296.00 zł | E9: 251.00 zł | F9: 269.00 zł | G9: 252.00 zł | H9: 252.00 zł | I9: 262.00 zł | J9: 258.00 zł | K9: 296.00 zł | L9: 270.00 zł | O9: =SUM(tblPrzychód[[#This Row],[STY]:[GRU]]) -> 2,681.00 zł
B10: Inne przychody | C10: 500.00 zł | D10: 507.00 zł | E10: 551.00 zł | F10: 556.00 zł | G10: 588.00 zł | H10: 534.00 zł | I10: 533.00 zł | J10: 585.00 zł | K10: 560.00 zł | L10: 520.00 zł | O10: =SUM(tblPrzychód[[#This Row],[STY]:[GRU]]) -> 5,434.00 zł
B11: ŁĄCZNY PRZYCHÓD | C11: =SUBTOTAL(109,tblPrzychód[STY]) -> 4,775.00 zł | D11: =SUBTOTAL(109,tblPrzychód[LUT]) -> 5,213.00 zł | E11: =SUBTOTAL(109,tblPrzychód[MAR]) -> 4,821.00 zł | F11: =SUBTOTAL(109,tblPrzychód[KWI]) -> 5,088.00 zł | G11: =SUBTOTAL(109,tblPrzychód[MAJ]) -> 4,963.00 zł | H11: =SUBTOTAL(109,tblPrzychód[CZE]) -> 5,094.00 zł | I11: =SUBTOTAL(109,tblPrzychód[LIP]) -> 4,957.00 zł | J11: =SUBTOTAL(109,tblPrzychód[SIE]) -> 5,008.00 zł | K11: =SUBTOTAL(109,tblPrzychód[WRZ]) -> 5,104.00 zł | L11: =SUBTOTAL(109,tblPrzychód[PAŹ]) -> 5,114.00 zł | M11: =SUBTOTAL(109,tblPrzychód[LIS]) -> 0.00 zł | N11: =SUBTOTAL(109,tblPrzychód[GRU]) -> 0.00 zł | O11: =SUBTOTAL(109,tblPrzychód[SUMA OPR]) -> 50,137.00 zł
B13: WYDATKI | C13: STY | D13: LUT | E13: MAR | F13: KWI | G13: MAJ | H13: CZE | I13: LIP | J13: SIE | K13: WRZ | L13: PAŹ | M13: LIS | N13: GRU | O13: SUMA OPR | P13: TREND
B14: Utrzymanie domu | C14: 1,500.00 zł | D14: 1,500.00 zł | E14: 1,500.00 zł | F14: 1,500.00 zł | G14: 1,500.00 zł | H14: 1,500.00 zł | I14: 1,500.00 zł | J14: 1,500.00 zł | K14: 1,500.00 zł | L14: 1,500.00 zł | O14: =SUM(tblWydatki[[#This Row],[STY]:[GRU]]) -> 15,000.00 zł
B15: Artykuły spożywcze | C15: 250.00 zł | D15: 331.00 zł | E15: 299.00 zł | F15: 333.00 zł | G15: 324.00 zł | H15: 313.00 zł | I15: 338.00 zł | J15: 225.00 zł | K15: 258.00 zł | L15: 322.00 zł | O15: =SUM(tblWydatki[[#This Row],[STY]:[GRU]]) -> 2,993.00 zł
B16: Opłaty za samochód | C16: 345.00 zł | D16: 345.00 zł | E16: 345.00 zł | F16: 345.00 zł | G16: 345.00 zł | H16: 345.00 zł | I16: 345.00 zł | J16: 345.00 zł | K16: 345.00 zł | L16: 345.00 zł | O16: =SUM(tblWydatki[[#This Row],[STY]:[GRU]]) -> 3,450.00 zł
B17: Ubezpieczenie | C17: 120.00 zł | D17: 120.00 zł | E17: 120.00 zł | F17: 120.00 zł | G17: 120.00 zł | H17: 120.00 zł | I17: 120.00 zł | J17: 120.00 zł | K17: 120.00 zł | L17: 120.00 zł | O17: =SUM(tblWydatki[[#This Row],[STY]:[GRU]]) -> 1,200.00 zł
B18: Telefon domowy | C18: 50.00 zł | D18: 50.00 zł | E18: 50.00 zł | F18: 50.00 zł | G18: 50.00 zł | H18: 50.00 zł | I18: 50.00 zł | J18: 50.00 zł | K18: 50.00 zł | L18: 50.00 zł | O18: =SUM(tblWydatki[[#This Row],[STY]:[GRU]]) -> 500.00 zł
B19: Telefon komórkowy | C19: 72.00 zł | D19: 70.00 zł | E19: 80.00 zł | F19: 70.00 zł | G19: 75.00 zł | H19: 80.00 zł | I19: 90.00 zł | J19: 73.00 zł | K19: 75.00 zł | L19: 70.00 zł | O19: =SUM(tblWydatki[[#This Row],[STY]:[GRU]]) -> 755.00 zł
B20: Telewizja kablowa | C20: 60.00 zł | D20: 63.00 zł | E20: 65.00 zł | F20: 60.00 zł | G20: 65.00 zł | H20: 60.00 zł | I20: 63.00 zł | J20: 60.00 zł | K20: 63.00 zł | L20: 60.00 zł | O20: =SUM(tblWydatki[[#This Row],[STY]:[GRU]]) -> 619.00 zł
B21: Internet | C21: 45.00 zł | D21: 45.00 zł | E21: 45.00 zł | F21: 45.00 zł | G21: 45.00 zł | H21: 45.00 zł | I21: 45.00 zł | J21: 45.00 zł | K21: 45.00 zł | L21: 45.00 zł | O21: =SUM(tblWydatki[[#This Row],[STY]:[GRU]]) -> 450.00 zł
B22: Energia elektryczna | C22: 155.00 zł | D22: 155.00 zł | E22: 158.00 zł | F22: 160.00 zł | G22: 165.00 zł | H22: 200.00 zł | I22: 340.00 zł | J22: 350.00 zł | K22: 240.00 zł | L22: 180.00 zł | O22: =SUM(tblWydatki[[#This Row],[STY]:[GRU]]) -> 2,103.00 zł
B23: Woda | C23: 35.00 zł | D23: 35.00 zł | E23: 37.00 zł | F23: 39.00 zł | G23: 45.00 zł | H23: 42.00 zł | I23: 42.00 zł | J23: 36.00 zł | K23: 38.00 zł | L23: 40.00 zł | O23: =SUM(tblWydatki[[#This Row],[STY]:[GRU]]) -> 389.00 zł
B24: Paliwo | C24: 50.00 zł | D24: 45.00 zł | E24: 40.00 zł | F24: 40.00 zł | G24: 42.00 zł | H24: 50.00 zł | I24: 55.00 zł | J24: 40.00 zł | K24: 43.00 zł | L24: 30.00 zł | O24: =SUM(tblWydatki[[#This Row],[STY]:[GRU]]) -> 435.00 zł
B25: Rozrywka | C25: 123.00 zł | D25: 92.00 zł | E25: 58.00 zł | F25: 131.00 zł | G25: 46.00 zł | H25: 105.00 zł | I25: 84.00 zł | J25: 108.00 zł | K25: 132.00 zł | L25: 136.00 zł | O25: =SUM(tblWydatki[[#This Row],[STY]:[GRU]]) -> 1,015.00 zł
B26: Czesne | C26: 550.00 zł | D26: 550.00 zł | E26: 550.00 zł | F26: 550.00 zł | G26: 550.00 zł | H26: 550.00 zł | I26: 550.00 zł | J26: 550.00 zł | K26: 550.00 zł | L26: 550.00 zł | O26: =SUM(tblWydatki[[#This Row],[STY]:[GRU]]) -> 5,500.00 zł
B27: Oszczędności | C27: 200.00 zł | D27: 225.00 zł | E27: 300.00 zł | F27: 200.00 zł | G27: 200.00 zł | H27: 200.00 zł | I27: 250.00 zł | J27: 325.00 zł | K27: 200.00 zł | L27: 200.00 zł | O27: =SUM(tblWydatki[[#This Row],[STY]:[GRU]]) -> 2,300.00 zł
B28: WYDATKI RAZEM | C28: =SUBTOTAL(109,tblWydatki[STY]) -> 3,555.00 zł | D28: =SUBTOTAL(109,tblWydatki[LUT]) -> 3,626.00 zł | E28: =SUBTOTAL(109,tblWydatki[MAR]) -> 3,647.00 zł | F28: =SUBTOTAL(109,tblWydatki[KWI]) -> 3,643.00 zł | G28: =SUBTOTAL(109,tblWydatki[MAJ]) -> 3,572.00 zł | H28: =SUBTOTAL(109,tblWydatki[CZE]) -> 3,660.00 zł | I28: =SUBTOTAL(109,tblWydatki[LIP]) -> 3,872.00 zł | J28: =SUBTOTAL(109,tblWydatki[SIE]) -> 3,827.00 zł | K28: =SUBTOTAL(109,tblWydatki[WRZ]) -> 3,659.00 zł | L28: =SUBTOTAL(109,tblWydatki[PAŹ]) -> 3,648.00 zł | M28: =SUBTOTAL(109,tblWydatki[LIS]) -> 0.00 zł | N28: =SUBTOTAL(109,tblWydatki[GRU]) -> 0.00 zł | O28: =SUBTOTAL(109,tblWydatki[SUMA OPR]) -> 36,709.00 zł
